bitfinex/quotes_SOLUSD_20240821
["timestamp","ask_amount","ask_price","bid_price","bid_amount"]
[1724243982343,7.0493,141.86,141.81,1.66098553]
[1724243982565,7.0493,141.86,141.81,46.66098553]
[1724243984152,30.9708,141.88,141.8,22.488]
[1724243984371,7.0505,141.84,141.8,22.488]
[1724243984867,13.35,141.86,141.8,22.488]
[1724243984868,7.0509,141.83,141.8,22.488]
[1724243986060,7.0516,141.81,141.8,22.488]
[1724243992365,7.0516,141.81,141.8,16.0889]
[1724243993460,7.0526,141.8,141.76,21.9418]
[1724243993665,7.0536,141.77,141.76,21.9418]
[1724243993886,7.0536,141.77,141.76,15.2819]
[1724243995376,7.0536,141.77,141.73,15.3549]
[1724243995683,13.35,141.79,141.73,15.3549]
[1724243995684,7.0541,141.76,141.73,15.3549]
[1724243998372,7.0537,141.77,141.73,15.3549]
[1724243998568,7.0537,141.77,141.74,1.53631141]
[1724244000858,7.0537,141.77,141.74,0.12549]
[1724244001475,7.0542,141.76,141.73,15.3549]
[1724244001684,7.0542,141.76,141.73,16.76587953]
[1724244002191,7.0538,141.77,141.74,1.53631257]
[1724244004564,26.84051149,141.83,141.75,0.12549]
[1724244004565,44.46761149,141.83,141.75,0.12549]
[1724244004766,7.0531,141.79,141.75,0.12549]
[1724244005184,20.0,141.78,141.75,0.12549]
[1724244005589,27.0532,141.78,141.75,0.12549]
[1724244007289,7.0537,141.77,141.75,0.12549]
[1724244010487,7.0537,141.77,141.74,0.12549]
[1724244010705,7.0542,141.76,141.74,0.12549]
[1724244012590,7.0546,141.75,141.73,15.3549]
[1724244016003,33.35,141.78,141.73,15.3549]
[1724244016004,7.0542,141.76,141.73,16.76584583]
[1724244016318,7.0538,141.77,141.74,1.41084832]
[1724244016521,27.0532,141.78,141.75,0.12549]
[1724244017119,7.0537,141.77,141.75,0.12549]
[1724244019693,7.0541,141.76,141.75,0.12549]
[1724244019892,20.0,141.78,141.75,0.12549]
[1724244020319,7.0537,141.77,141.75,0.12549]
[1724244020623,7.0537,141.77,141.75,0.25098]
[1724244020913,20.0,141.78,141.75,0.25098]
[1724244021301,27.0535,141.78,141.75,0.25098]
[1724244022017,27.0535,141.78,141.75,0.12549]
[1724244022018,7.0537,141.77,141.75,0.12549]
[1724244024628,7.0537,141.77,141.75,1.53622513]
[1724244025426,20.0,141.78,141.75,1.53622513]
[1724244025608,7.053,141.79,141.76,0.12549]
[1724244027422,7.0531,141.78,141.75,0.25098]
[1724244027629,7.0537,141.77,141.75,0.12549]
[1724244028811,13.35,141.77,141.73,15.3549]
[1724244029832,7.0549,141.75,141.73,15.3549]
[1724244030315,7.0542,141.76,141.73,15.3549]
[1724244031809,7.0547,141.75,141.73,15.3549]
[1724244032634,7.0551,141.74,141.73,15.3549]
[1724244032808,7.0551,141.74,141.69,32.8938]
[1724244033009,7.0551,141.74,141.7,45.25098]
[1724244035940,7.0547,141.75,141.71,1.41103542]
[1724244036233,7.0547,141.75,141.72,0.25098]
[1724244037133,7.0547,141.75,141.71,0.25098]
[1724244038013,7.0542,141.76,141.71,0.25098]
[1724244040743,7.0547,141.75,141.71,0.25098]
[1724244042153,7.0543,141.76,141.71,0.25098]
[1724244043146,7.0543,141.76,141.71,1.66188608]
[1724244044257,7.0537,141.77,141.71,22.06848608]
[1724244044630,7.0537,141.77,141.72,45.0]
[1724244044936,7.0537,141.77,141.73,1.66171011]
[1724244045243,7.0537,141.77,141.74,1.4107223]
[1724244046048,7.0537,141.77,141.73,1.6617391]
[1724244046550,7.0537,141.77,141.73,0.25098]
[1724244047551,7.0552,141.74,141.71,1.41077139]
[1724244047752,7.0552,141.74,141.69,15.2506]
[1724244048241,7.0548,141.75,141.7,1.4110634]
[1724244048444,7.0548,141.75,141.71,1.41106285]
[1724244050353,7.0551,141.74,141.71,1.41106285]
[1724244050561,7.0551,141.74,141.7,45.12549]
[1724244050760,7.0551,141.74,141.71,0.25098]
[1724244051730,30.986,141.76,141.71,0.25098]
[1724244052063,7.0552,141.74,141.71,0.25098]
[1724244053937,13.35,141.76,141.71,0.25098]
[1724244055930,7.0552,141.74,141.71,0.25098]
[1724244059138,7.0552,141.74,141.71,0.12549]
[1724244060740,7.0549,141.75,141.71,1.66209391]
[1724244064173,7.0549,141.75,141.71,0.25098]
[1724244067186,7.0549,141.75,141.71,0.12549]
[1724244067363,7.0549,141.75,141.7,0.25098]
[1724244068779,7.0549,141.75,141.7,1.66211512]
[1724244068979,7.0549,141.75,141.7,0.25098]
[1724244069180,7.0552,141.74,141.7,0.25098]
[1724244072061,7.0547,141.75,141.7,0.25098]
[1724244072284,7.0547,141.75,141.7,46.66205584]
[1724244072665,7.0538,141.77,141.71,7.0566]
[1724244072991,20.0,141.76,141.72,53.7179574]
[1724244073299,7.37065684,141.82,141.73,20.0]
[1724244073589,14.42215684,141.82,141.75,7.0542]
[1724244073761,7.0515,141.82,141.76,46.66145717]
[1724244073961,7.0515,141.82,141.77,1.41045263]
[1724244074378,7.0517,141.81,141.77,1.41045263]
[1724244074584,7.0517,141.81,141.78,0.12549]
[1724244075270,7.0517,141.81,141.77,0.12549]
[1724244075676,20.0,141.8,141.77,0.12549]
[1724244077280,27.0525,141.8,141.76,0.12549]
[1724244077487,27.0525,141.8,141.75,45.25098]
[1724244078684,20.0,141.8,141.75,45.25098]
[1724244079591,27.0522,141.8,141.75,45.25098]
[1724244079769,20.0,141.8,141.75,45.25098]
[1724244079964,20.0,141.8,141.75,0.25098]
[1724244080174,7.0527,141.79,141.75,0.25098]
[1724244082103,7.0532,141.78,141.74,45.0]
[1724244082270,7.0532,141.78,141.73,22.835]
[1724244083705,7.0532,141.78,141.74,0.12549]
[1724244086696,20.0,141.8,141.74,46.6618094]
[1724244086892,20.0,141.81,141.74,45.25098]
[1724244087271,7.0525,141.8,141.74,52.30588]
[1724244087893,7.0525,141.8,141.75,1.4106616]
[1724244089996,7.0528,141.79,141.75,1.4106616]
[1724244090177,20.0,141.81,141.74,45.25098]
[1724244090379,7.0527,141.79,141.74,45.25098]
[1724244092710,7.0527,141.79,141.74,0.25098]
[1724244093580,7.0532,141.78,141.74,0.25098]
[1724244097510,7.0549,141.75,141.69,16.4361]
[1724244097723,26.383,141.81,141.69,36.8433]
[1724244097724,7.0545,141.76,141.69,36.8433]
[1724244098187,7.0545,141.76,141.7,7.057]
[1724244098604,7.0545,141.76,141.71,0.25098]
[1724244098791,7.0545,141.76,141.71,45.25098]
[1724244099940,7.0545,141.76,141.72,1.41095093]
[1724244100738,7.0545,141.76,141.71,45.25098]
[1724244102737,7.0545,141.76,141.72,1.41095384]
[1724244103125,7.0538,141.77,141.73,1.66193227]
[1724244103438,7.0538,141.77,141.73,1.41095227]
[1724244104129,7.0538,141.77,141.72,1.4108481]
[1724244104329,7.0538,141.77,141.73,0.25098]
[1724244104644,7.0538,141.77,141.74,1.41086287]
[1724244105432,7.0538,141.77,141.73,0.25098]
[1724244105621,7.0538,141.77,141.74,0.25098]
[1724244105823,7.0538,141.77,141.72,0.25098]
[1724244106931,6.383,141.81,141.72,21.66175545]
[1724244107235,7.0531,141.79,141.73,45.0]
[1724244107434,20.0,141.78,141.74,0.25098]
[1724244109256,7.0531,141.79,141.74,1.66170479]
[1724244109943,6.4365,141.84,141.74,8.71660479]
[1724244110274,33.35,141.82,141.75,45.0]
[1724244110457,33.35,141.82,141.76,1.66156727]
[1724244110955,7.0522,141.8,141.77,1.41053118]
[1724244111132,20.0,141.82,141.78,0.25098]
[1724244111133,7.0512,141.82,141.78,0.25098]
[1724244111537,7.0512,141.82,141.78,1.66136803]
[1724244113328,7.0512,141.82,141.78,0.25098]
[1724244113528,7.0516,141.81,141.78,0.25098]
[1724244113945,7.0513,141.82,141.78,0.25098]
[1724244115252,7.0507,141.83,141.78,1.66138792]
[1724244115457,20.0,141.82,141.78,1.66138792]
[1724244116266,7.0502,141.84,141.78,8.71438792]
[1724244116455,7.0502,141.84,141.79,45.0]
[1724244116764,7.0498,141.85,141.8,1.66106687]
[1724244117145,7.0493,141.86,141.8,8.71316687]
[1724244117343,7.0493,141.86,141.81,45.0]
[1724244117536,7.0493,141.86,141.82,1.66097773]
[1724244117868,47.297888,141.91,141.82,1.66097773]
[1724244118046,7.0491,141.87,141.82,1.66097773]
[1724244118447,7.0483,141.88,141.83,1.40998811]
[1724244118749,7.0493,141.86,141.82,0.25098]
[1724244119273,7.0493,141.86,141.82,1.66097996]
[1724244120247,7.0493,141.86,141.82,0.25098]
[1724244120749,7.0497,141.85,141.79,17.6305]
[1724244121943,7.0503,141.84,141.77,30.0192]
[1724244122151,7.0516,141.82,141.77,22.9656]
[1724244123349,7.0516,141.82,141.77,16.4473]
[1724244123752,7.0517,141.81,141.75,7.0545]
[1724244123953,7.0517,141.81,141.76,45.0]
[1724244124259,13.35,141.82,141.77,1.53599071]
[1724244124461,20.4014,141.82,141.77,0.12549]
[1724244124781,7.0514,141.82,141.76,0.12549]
[1724244124971,20.4014,141.82,141.76,0.25098]
[1724244126261,7.0522,141.8,141.76,0.25098]
[1724244126568,7.0533,141.78,141.75,45.0]
[1724244126878,7.0527,141.79,141.74,45.12549]
[1724244127076,13.35,141.82,141.74,52.18059]
[1724244127255,7.0522,141.8,141.74,45.12549]
[1724244127585,20.0,141.81,141.76,13.35]
[1724244127879,13.35,141.85,141.77,58.47549]
[1724244128179,7.0512,141.82,141.77,0.12549]
[1724244128764,7.0512,141.82,141.77,45.25098]
[1724244129979,7.0517,141.81,141.77,0.25098]
[1724244130158,7.0517,141.81,141.75,17.6364]
[1724244130349,13.35,141.83,141.76,0.12549]
[1724244130350,7.0523,141.8,141.76,0.12549]
[1724244130745,7.0517,141.81,141.76,0.12549]
[1724244131278,7.0522,141.8,141.75,0.12549]
[1724244131455,7.0522,141.8,141.74,45.12549]
[1724244132473,7.0522,141.8,141.75,0.12549]
[1724244132959,7.0517,141.81,141.75,0.12549]
[1724244133582,7.0522,141.8,141.75,0.12549]
[1724244134254,20.0,141.84,141.75,14.76073123]
[1724244134566,21.4728,141.86,141.76,72.30468]
[1724244134567,33.35,141.85,141.76,72.30468]
[1724244135072,7.0505,141.84,141.77,8.46376991]
[1724244135257,27.0507,141.83,141.78,0.25098]
[1724244135757,27.0507,141.83,141.78,46.66129195]
[1724244135956,7.0507,141.83,141.78,46.66129195]
[1724244136705,7.0502,141.84,141.78,46.66129195]
[1724244137007,7.0502,141.84,141.78,72.30408]
[1724244137703,7.0502,141.84,141.79,16.2209]
[1724244137894,7.0502,141.84,141.8,0.25098]
[1724244139217,7.0498,141.85,141.8,0.25098]
[1724244139907,7.0493,141.86,141.8,0.25098]
[1724244140100,20.72271664,141.89,141.8,46.66112622]
[1724244140324,20.72271664,141.89,141.8,53.71312622]
[1724244140496,7.37271664,141.89,141.81,13.35]
[1724244140797,7.0486,141.88,141.82,46.66083518]
[1724244140999,7.049,141.87,141.82,45.25098]
[1724244141204,35.747,141.9,141.83,1.40985605]
[1724244141379,7.0482,141.88,141.84,0.25098]
[1724244141906,7.0487,141.87,141.84,0.25098]
[1724244142120,7.3107372,141.91,141.85,0.12549]
[1724244142404,7.3107372,141.91,141.84,45.0]
[1724244142405,7.0478,141.89,141.84,45.0]
[1724244142599,7.0478,141.89,141.83,24.53238]
[1724244142600,7.0478,141.89,141.85,0.25098]
[1724244143182,7.0478,141.89,141.84,0.25098]
[1724244145516,7.0487,141.87,141.82,45.0]
[1724244145817,7.0487,141.87,141.81,45.12549]
[1724244146811,13.35,141.89,141.82,1.40999625]
[1724244147016,13.35,141.89,141.81,45.12549]
[1724244147017,13.35,141.89,141.83,0.25098]
[1724244147230,20.3981,141.89,141.82,20.12549]
[1724244147385,20.3981,141.89,141.83,45.12549]
[1724244147386,7.0483,141.88,141.83,45.12549]
[1724244147589,7.0483,141.88,141.84,0.12549]
[1724244148325,13.35,141.91,141.83,20.25098]
[1724244148528,20.0,141.9,141.84,45.0]
[1724244148689,20.0,141.9,141.85,0.25098]
[1724244148894,20.0,141.9,141.85,1.66064707]
[1724244149200,7.0477,141.89,141.85,1.66064707]
[1724244149625,7.0477,141.89,141.85,0.25098]
[1724244149812,7.0477,141.89,141.84,45.0]
[1724244149813,7.0482,141.88,141.82,7.0511]
[1724244150124,7.0482,141.88,141.83,45.25098]
[1724244150503,27.0475,141.9,141.84,35.5028]
[1724244150809,7.0478,141.89,141.85,45.25098]
[1724244151008,7.0478,141.89,141.85,0.25098]
[1724244151332,7.0483,141.88,141.84,15.5028]
[1724244154127,7.0477,141.89,141.85,0.25098]
[1724244155118,7.0477,141.89,141.85,45.25098]
[1724244156020,7.0477,141.89,141.85,0.25098]
[1724244156229,20.0,141.9,141.85,0.12549]
[1724244156393,7.0465,141.92,141.85,53.14076451]
[1724244156722,7.0465,141.92,141.85,60.19036451]
[1724244157800,7.0465,141.92,141.85,53.14076451]
[1724244158302,7.0465,141.92,141.85,60.19046451]
[1724244160199,7.0467,141.91,141.85,53.14076451]
[1724244160399,7.0473,141.9,141.85,53.14076451]
[1724244160601,7.0473,141.9,141.85,51.73118]
[1724244161029,7.0467,141.91,141.85,51.73118]
[1724244162129,7.0472,141.9,141.85,51.73118]
[1724244163550,13.35,141.92,141.85,51.73118]
[1724244163838,13.35,141.88,141.84,15.5028]
[1724244164510,7.0487,141.87,141.84,15.5028]
[1724244164731,13.35,141.88,141.84,15.5028]
[1724244164937,7.0483,141.88,141.85,0.12549]
[1724244168435,7.0477,141.89,141.85,0.12549]
[1724244168637,7.0477,141.89,141.85,46.6606096]
[1724244170358,7.0473,141.9,141.85,46.6606096]
[1724244170523,7.0488,141.87,141.85,0.25098]
[1724244170732,7.0488,141.87,141.84,15.5028]
[1724244172643,7.0488,141.87,141.81,6.5838]
[1724244172810,7.0488,141.87,141.82,0.25098]
[1724244174260,13.35,141.89,141.82,0.25098]
[1724244174467,13.35,141.9,141.82,65.25098]
[1724244174656,7.0477,141.89,141.82,78.60098]
[1724244175346,13.35,141.92,141.84,48.732]
[1724244175658,20.0,141.91,141.85,45.25098]
[1724244175841,7.0476,141.9,141.85,45.25098]
[1724244176244,7.0477,141.89,141.85,0.25098]
[1724244177035,7.0483,141.88,141.84,15.382]
[1724244179241,7.0488,141.87,141.84,15.382]
[1724244181761,7.0488,141.87,141.81,31.2639]
[1724244181762,13.35,141.86,141.81,6.5838]
[1724244182066,7.0497,141.85,141.81,6.5838]
[1724244183468,7.0508,141.83,141.8,15.9821]
[1724244184664,7.0484,141.88,141.8,36.3841]
[1724244184875,27.0487,141.87,141.8,36.3841]
[1724244185397,7.0499,141.85,141.8,15.9821]
[1724244185666,7.0499,141.85,141.81,0.25098]
[1724244185958,7.0499,141.85,141.81,1.66103659]
[1724244186453,7.0499,141.85,141.81,0.25098]
[1724244186660,7.0492,141.86,141.81,45.25098]
[1724244186861,7.0492,141.86,141.82,1.40993177]
[1724244187070,7.0492,141.86,141.83,0.12549]
[1724244187245,7.0492,141.86,141.83,0.25098]
[1724244188145,7.0492,141.86,141.82,0.25098]
[1724244188856,27.0487,141.87,141.82,1.66091679]
[1724244189055,7.37213422,141.91,141.82,21.15718007]
[1724244189268,7.0478,141.89,141.83,45.0]
[1724244189485,7.0478,141.89,141.84,1.66066322]
[1724244190581,7.37079781,141.93,141.85,37.49260016]
[1724244190760,7.37079781,141.93,141.86,46.53494374]
[1724244190960,7.37079781,141.93,141.87,0.12549]
[1724244191260,7.37079781,141.93,141.87,1.53487902]
[1724244191465,7.0463,141.92,141.88,0.12549]
[1724244192287,7.0463,141.92,141.87,0.25098]
[1724244192906,7.37079781,141.93,141.87,6.27808]
[1724244193084,267.35,141.97,141.88,58.35]
[1724244193254,267.35,141.97,141.89,1.66017116]
[1724244193853,7.0452,141.94,141.89,1.66017116]
[1724244194981,7.0452,141.94,141.89,0.25098]
[1724244195678,7.0452,141.94,141.89,1.66019015]
[1724244196383,7.0452,141.94,141.89,1.6601847]
[1724244196768,7.0452,141.94,141.89,0.25098]
[1724244197187,7.0461,141.93,141.89,0.25098]
[1724244198377,13.35,141.95,141.89,0.25098]
[1724244198378,7.0453,141.94,141.89,0.25098]
[1724244198690,7.0458,141.93,141.89,0.25098]
[1724244199878,7.0462,141.92,141.89,0.25098]
[1724244200179,7.0463,141.92,141.89,0.12549]
[1724244200405,7.0463,141.92,141.88,0.12549]
[1724244200672,13.35,141.91,141.85,16.083]
[1724244202101,7.0477,141.89,141.85,16.083]
[1724244202592,7.0472,141.9,141.86,0.12549]
[1724244202768,7.0472,141.9,141.86,0.25098]
[1724244203298,7.0468,141.91,141.86,45.25098]
[1724244203966,7.0468,141.91,141.87,1.40946781]
[1724244204175,7.0468,141.91,141.88,0.12549]
[1724244204993,7.0468,141.91,141.87,0.12549]
[1724244205173,30.9624,141.95,141.87,0.12549]
[1724244205174,7.0463,141.92,141.87,1.53491885]
[1724244205494,7.0463,141.92,141.88,0.12549]
[1724244205697,7.0463,141.92,141.87,0.12549]
[1724244206166,7.0463,141.92,141.87,1.53492543]
[1724244206369,7.0463,141.92,141.88,0.12549]
[1724244206592,13.35,141.97,141.88,0.12549]
[1724244206896,20.0,141.96,141.88,45.12549]
[1724244207070,7.046,141.93,141.89,1.53477796]
[1724244207268,7.0458,141.93,141.89,0.12549]
[1724244207874,7.0458,141.93,141.89,1.53477955]
[1724244208684,7.0458,141.93,141.89,0.12549]
[1724244208994,13.35,141.96,141.89,1.53477898]
[1724244209189,13.35,141.96,141.9,0.12549]
[1724244209371,7.0452,141.94,141.9,0.12549]
[1724244210580,7.0458,141.93,141.9,0.12549]
[1724244211069,7.0458,141.93,141.89,6.60889]
[1724244213516,13.35,141.96,141.9,1.40932874]
[1724244213821,7.0453,141.94,141.89,6.60889]
[1724244214109,7.0453,141.94,141.9,1.40925405]
[1724244214815,7.0453,141.94,141.9,17.68095405]
[1724244216819,13.35,141.94,141.89,6.4834]
[1724244216989,7.0465,141.92,141.86,22.003]
[1724244217387,7.0472,141.9,141.86,22.003]
[1724244218193,7.0472,141.9,141.87,0.25098]
[1724244218589,7.0472,141.9,141.86,22.003]
[1724244219808,7.0472,141.9,141.87,0.25098]
[1724244221806,7.0468,141.91,141.87,0.25098]
[1724244222002,20.0,141.95,141.89,20.0]
[1724244222203,7.0452,141.94,141.9,45.25098]
[1724244222708,13.35,141.94,141.86,46.6745]
[1724244223029,13.35,141.94,141.87,45.12549]
[1724244223218,7.0462,141.92,141.87,45.12549]
[1724244224022,7.0462,141.92,141.88,0.12549]
[1724244224530,7.047,141.91,141.88,0.12549]
[1724244224738,7.0473,141.9,141.87,0.12549]
[1724244225033,7.0479,141.89,141.86,22.003]
[1724244226211,7.0473,141.9,141.87,0.12549]
[1724244229735,7.0473,141.9,141.87,45.25098]
[1724244232440,7.0473,141.9,141.87,0.25098]
[1724244232743,7.0473,141.9,141.86,22.003]
[1724244232941,7.0478,141.89,141.86,22.003]
[1724244233140,7.0483,141.88,141.86,22.003]
[1724244234051,7.0478,141.89,141.86,22.003]
[1724244237425,7.0475,141.9,141.87,1.40965986]
[1724244237625,7.0475,141.9,141.88,0.25098]
[1724244238129,7.0475,141.9,141.87,0.25098]
[1724244238351,7.0475,141.9,141.87,1.66043664]
[1724244238930,7.0475,141.9,141.87,0.25098]
[1724244240341,7.048,141.89,141.86,22.003]
[1724244241336,7.0483,141.88,141.86,15.5533]
[1724244242456,7.0483,141.88,141.83,7.8825479]
[1724244242658,7.0483,141.88,141.83,6.4727]
[1724244243762,7.0483,141.88,141.84,0.25098]
[1724244245856,7.0478,141.89,141.84,0.25098]
[1724244246056,7.0478,141.89,141.84,45.25098]
[1724244247855,7.0478,141.89,141.85,1.40960091]
[1724244248061,7.0478,141.89,141.86,0.25098]
[1724244249057,7.0478,141.89,141.85,0.25098]
[1724244250485,7.0478,141.89,141.85,1.66058376]
[1724244251781,7.0478,141.89,141.85,0.25098]
[1724244253690,7.0483,141.88,141.85,0.25098]
[1724244254182,7.0483,141.88,141.84,0.25098]
[1724244257976,13.35,141.89,141.84,0.25098]
[1724244257977,7.0487,141.87,141.84,0.25098]
[1724244258291,7.0502,141.84,141.79,6.1301]
[1724244260201,7.0502,141.84,141.8,1.41014355]
[1724244260394,7.0502,141.84,141.81,0.25098]
[1724244261400,7.0498,141.85,141.81,0.25098]
[1724244261609,7.0498,141.85,141.82,0.25098]
[1724244261905,13.35,141.87,141.81,1.40998726]
[1724244262096,7.0495,141.86,141.82,0.25098]
[1724244262902,13.35,141.9,141.82,21.66090419]
[1724244263108,7.0487,141.87,141.83,45.0]
[1724244263399,7.0487,141.87,141.84,0.25098]
[1724244264883,7.0492,141.86,141.84,0.25098]
[1724244265404,7.0488,141.87,141.84,0.25098]
[1724244267596,7.0497,141.85,141.8,17.6298]
[1724244267796,7.0505,141.84,141.79,6.1301]
[1724244268889,7.0505,141.84,141.8,0.12549]
[1724244269094,7.0505,141.84,141.8,0.25098]
[1724244269704,7.0492,141.86,141.8,27.30308]
[1724244269911,7.0492,141.86,141.8,72.30308]
[1724244271102,7.37167098,141.91,141.8,65.25098]
[1724244271308,7.0488,141.87,141.82,20.0]
[1724244271482,7.0488,141.87,141.83,45.25098]
[1724244272596,7.0488,141.87,141.83,46.66079386]
[1724244272791,7.0488,141.87,141.83,45.25098]
[1724244272979,7.0488,141.87,141.84,1.40979549]
[1724244273179,7.0483,141.88,141.85,0.25098]
[1724244274789,7.0483,141.88,141.84,0.25098]
[1724244276478,7.0483,141.88,141.84,1.66075362]
[1724244278986,13.35,141.88,141.83,15.1944]
[1724244279194,7.0498,141.85,141.83,15.1944]
[1724244279693,7.0498,141.85,141.8,15.2253]
[1724244279892,7.0503,141.84,141.8,15.2253]
[1724244281591,7.0503,141.84,141.81,0.25098]
[1724244282103,7.0498,141.85,141.81,0.25098]
[1724244283786,7.0498,141.85,141.81,1.66112736]
[1724244284314,7.0505,141.84,141.81,0.25098]
[1724244287230,7.0508,141.83,141.8,15.2253]
[1724244287396,7.0512,141.82,141.77,15.4586]
[1724244289105,30.9757,141.84,141.77,15.4586]
[1724244289303,20.0,141.83,141.77,15.4586]
[1724244290601,7.0518,141.81,141.77,15.4586]
[1724244290805,7.0518,141.81,141.78,0.25098]
[1724244293826,7.0513,141.82,141.78,0.25098]
[1724244294422,7.0513,141.82,141.78,1.66134229]
[1724244296432,7.0513,141.82,141.78,0.25098]
[1724244296804,7.0517,141.81,141.78,0.25098]
[1724244301043,20.0,141.83,141.78,0.25098]
[1724244301207,20.0,141.86,141.78,35.01134849]
[1724244301405,20.0,141.86,141.79,45.0]
[1724244301620,7.0505,141.84,141.8,1.66115195]
[1724244301944,47.3952,141.87,141.8,1.66115195]
[1724244301945,7.0497,141.85,141.8,1.66115195]
[1724244302107,7.0493,141.86,141.81,1.40998244]
[1724244302306,7.0493,141.86,141.82,0.25098]
[1724244302544,7.0493,141.86,141.82,1.66096013]
[1724244303014,13.35,141.89,141.82,1.66096013]
[1724244303209,7.0486,141.88,141.82,21.64608]
[1724244303434,7.0486,141.88,141.83,45.0]
[1724244303629,7.0486,141.88,141.84,0.25098]
[1724244305310,7.0477,141.89,141.84,0.25098]
[1724244306526,7.0477,141.89,141.84,1.6606635]
[1724244307424,7.0477,141.89,141.84,0.25098]
[1724244307625,14.41049087,141.91,141.84,22.06073441]
[1724244307835,14.41049087,141.91,141.85,65.0]
[1724244308145,7.047,141.91,141.86,1.66042431]
[1724244309250,7.047,141.91,141.86,0.25098]
[1724244309624,7.0473,141.9,141.86,0.25098]
[1724244309822,7.048,141.89,141.82,52.3726]
[1724244310122,7.0483,141.88,141.82,46.0736]
[1724244310731,7.0487,141.87,141.82,39.0226]
[1724244312350,7.0482,141.88,141.83,0.25098]
[1724244312514,7.0482,141.88,141.83,45.25098]
[1724244313052,7.0482,141.88,141.84,1.40974952]
[1724244313237,7.0482,141.88,141.85,0.25098]
[1724244315636,7.0478,141.89,141.86,0.25098]
[1724244315821,7.0478,141.89,141.86,1.66063732]
[1724244316549,7.0478,141.89,141.86,0.25098]
[1724244316751,7.0478,141.89,141.85,0.25098]
[1724244317828,7.0478,141.89,141.84,0.25098]
[1724244318634,7.0483,141.88,141.84,0.25098]
[1724244319964,7.0493,141.86,141.82,21.3951]
[1724244320258,7.0495,141.86,141.82,21.3951]
[1724244321528,7.0487,141.87,141.82,21.3951]
[1724244322038,7.0487,141.87,141.83,1.66086348]
[1724244322447,30.9684,141.9,141.83,1.66086348]
[1724244322633,20.0,141.89,141.83,46.66086348]
[1724244323754,20.0,141.89,141.83,45.25098]
[1724244323968,7.0482,141.88,141.83,45.25098]
[1724244324164,13.35,141.92,141.84,14.75968304]
[1724244324459,7.0473,141.9,141.85,45.25098]
[1724244325759,7.0473,141.9,141.86,1.40955693]
[1724244325936,7.0473,141.9,141.85,45.25098]
[1724244325937,7.0473,141.9,141.87,0.25098]
[1724244326257,17.6151,141.93,141.88,0.25098]
[1724244326258,13.35,141.93,141.88,0.25098]
[1724244326440,7.0466,141.92,141.88,0.25098]
[1724244327351,7.0467,141.91,141.88,0.25098]
[1724244327547,7.0463,141.92,141.87,21.8153]
[1724244327754,7.36195567,141.94,141.89,0.12549]
[1724244328081,7.0465,141.92,141.89,0.12549]
[1724244328562,7.0465,141.92,141.88,0.25098]
[1724244331762,13.35,141.93,141.88,0.25098]
[1724244331972,13.35,141.93,141.87,21.8153]
[1724244332976,7.0472,141.9,141.87,21.8153]
[1724244333468,7.0473,141.9,141.87,15.7464]
[1724244333670,7.0478,141.89,141.87,15.7464]
[1724244335039,7.0473,141.9,141.87,15.7464]
[1724244342768,7.0473,141.9,141.88,1.40951213]
[1724244343188,7.0468,141.91,141.88,1.40951213]
[1724244343393,7.36195567,141.94,141.89,1.40941832]
[1724244343559,7.36195567,141.94,141.9,1.66014647]
[1724244343560,14.40745567,141.94,141.9,1.66014647]
[1724244343891,7.0455,141.94,141.9,1.66014647]
[1724244346784,7.0457,141.93,141.9,1.66014647]